bitfinex-derivatives/quotes_SOLF0:USTF0_20251122
["timestamp","ask_amount","ask_price","bid_price","bid_amount"]
[1763843185025,0.04969717,127.35,127.33,0.06001733]
[1763843185624,0.04969717,127.35,127.33,3.07001733]
[1763843190221,0.04969717,127.35,127.33,0.06001733]
[1763843190427,7.12149717,127.35,127.33,0.06001733]
[1763843193224,0.04969717,127.35,127.33,3.07001733]
[1763843200028,16.44,127.38,127.33,3.07001733]
[1763843200930,0.05554875,127.37,127.33,3.07001733]
[1763843201121,7.12614875,127.37,127.33,3.07001733]
[1763843201321,7.12614875,127.37,127.34,3.1]
[1763843202223,7.0713,127.36,127.34,3.1]
[1763843204225,7.0717,127.35,127.33,0.06001733]
[1763843204628,7.0717,127.35,127.33,3.16001733]
[1763843207633,1.70076712,127.37,127.33,3.16001733]
[1763843208727,1.70076712,127.37,127.33,0.06001733]
[1763843208728,8.71711837,127.35,127.33,0.06001733]
[1763843208928,16.44,127.34,127.33,0.06001733]
[1763843216142,16.44,127.34,127.33,3.16001733]
[1763843216342,16.44,127.34,127.33,0.06001733]
[1763843216543,16.44,127.34,127.33,3.16001733]
[1763843218037,16.44,127.34,127.33,0.06001733]
[1763843222338,16.44,127.34,127.33,3.16001733]
[1763843222935,1.70076712,127.37,127.33,3.16001733]
[1763843222936,7.12644875,127.37,127.33,3.16001733]
[1763843223245,23.56644875,127.37,127.33,3.16001733]
[1763843225144,23.56644875,127.37,127.34,3.1]
[1763843229344,1.64521837,127.35,127.33,0.06001733]
[1763843230145,8.71711837,127.35,127.33,0.06001733]
[1763843231647,110.0159,127.34,127.29,9.74509606]
[1763843231846,1.64521837,127.31,127.28,3.23]
[1763843232752,1.70095599,127.31,127.28,3.28085912]
[1763843233143,8.77485599,127.31,127.28,3.28085912]
[1763843234352,1.70095599,127.31,127.28,3.28085912]
[1763843236250,8.77495599,127.31,127.28,3.28085912]
[1763843242654,110.0751,127.27,127.22,12.97509606]
[1763843242959,18.08521837,127.26,127.22,3.23]
[1763843243363,7.0779,127.24,127.21,3.23]
[1763843243563,128.16961837,127.26,127.2,9.74509606]
[1763843243764,1.70237922,127.24,127.21,0.05055119]
[1763843245157,7.0785,127.23,127.21,0.05055119]
[1763843246355,16.44,127.22,127.21,0.05055119]
[1763843246759,18.08521837,127.22,127.21,0.05055119]
[1763843248063,25.16451837,127.22,127.17,3.23]
[1763843248659,25.16451837,127.22,127.15,4.87521837]
[1763843248855,1.64521837,127.2,127.15,3.23]
[1763843249165,16.49849555,127.19,127.16,0.05379586]
[1763843250063,23.57929555,127.19,127.16,0.05379586]
[1763843251464,8.72651837,127.18,127.16,0.05379586]
[1763843251756,1.64521837,127.18,127.16,0.05379586]
[1763843253876,8.72651837,127.18,127.16,0.05379586]
[1763843255971,1.70371392,127.19,127.16,0.05379586]
[1763843256177,16.44,127.18,127.16,0.05379586]
[1763843263276,0.05849555,127.19,127.16,3.15379586]
[1763843263776,0.05849555,127.19,127.16,10.23579586]
[1763843263980,0.05849555,127.19,127.17,3.1]
[1763843270485,7.0782,127.24,127.18,3.1]
[1763843270682,2.57805243,127.28,127.2,3.1]
[1763843270879,16.46,127.27,127.2,3.1]
[1763843271177,16.46,127.27,127.23,3.1]
[1763843271178,23.5362,127.27,127.23,3.1]
[1763843271579,0.05368352,127.26,127.24,0.05510778]
[1763843274280,0.05368352,127.26,127.24,3.15510778]
[1763843276286,0.05368352,127.26,127.24,0.05510778]
[1763843281398,7.13058352,127.26,127.24,0.05510778]
[1763843281997,7.13058352,127.26,127.24,3.15510778]
[1763843282299,0.05368352,127.26,127.24,3.15510778]
[1763843282597,16.44,127.31,127.24,3.15510778]
[1763843283297,7.0746,127.3,127.25,3.1]
[1763843283496,0.05301716,127.29,127.27,3.1]
[1763843283891,0.05301716,127.29,127.26,3.15779922]
[1763843286501,7.12821716,127.29,127.26,0.05779922]
[1763843287699,7.12821716,127.29,127.26,3.07779922]
[1763843294497,0.05301716,127.29,127.26,3.07779922]
[1763843301417,7.12821716,127.29,127.26,3.07779922]
[1763843302811,7.0756,127.28,127.26,0.05779922]
[1763843303412,0.05301716,127.29,127.26,3.07779922]
[1763843304013,2.63106959,127.29,127.26,3.07779922]
[1763843305111,7.0756,127.28,127.26,3.07779922]
[1763843306310,0.05301716,127.29,127.26,3.07779922]
[1763843307215,7.12801716,127.29,127.26,3.07779922]
[1763843310016,0.05301716,127.29,127.26,3.07779922]
[1763843312119,7.12801716,127.29,127.26,3.07779922]
[1763843314318,0.05301716,127.29,127.26,3.07779922]
[1763843316019,7.12811716,127.29,127.26,3.07779922]
[1763843317524,7.0756,127.28,127.26,3.07779922]
[1763843322424,0.05301716,127.29,127.26,3.07779922]
[1763843324231,0.05301716,127.29,127.26,12.82289528]
[1763843324533,0.05301716,127.29,127.27,3.1]
[1763843332036,18.08666555,127.33,127.28,3.1]
[1763843332233,18.08666555,127.33,127.29,3.1]
[1763843332924,0.05019898,127.32,127.3,3.15083504]
[1763843337238,0.05019898,127.32,127.31,3.1]
[1763843340928,0.05019898,127.32,127.3,3.15083504]
[1763843346238,1.64666555,127.37,127.31,3.18]
[1763843346629,8.71726555,127.37,127.31,10.2534]
[1763843346830,8.71726555,127.37,127.32,3.18]
[1763843347035,1.64666555,127.35,127.31,3.18]
[1763843347244,0.0595035,127.34,127.32,0.05383184]
[1763843347444,7.1318035,127.34,127.32,0.05383184]
[1763843349037,7.1318035,127.34,127.32,3.23383184]
[1763843350148,0.0595035,127.34,127.32,3.23383184]
[1763843351639,16.44,127.33,127.32,0.05383184]
[1763843359567,18.08666555,127.33,127.32,0.05383184]
[1763843361364,18.08666555,127.33,127.28,3.18]
[1763843361565,8.72066555,127.31,127.28,3.18]
[1763843362268,8.77674916,127.31,127.28,3.23888335]
[1763843362469,0.05608361,127.31,127.28,3.23888335]
[1763843362875,16.49608361,127.31,127.28,3.23888335]
[1763843366477,16.49608361,127.31,127.29,3.18]
[1763843367478,16.49608361,127.31,127.28,0.05888335]
[1763843367672,16.49608361,127.31,127.28,3.23888335]
[1763843369172,23.56998361,127.31,127.28,3.23888335]
[1763843369367,16.49608361,127.31,127.28,3.23888335]
[1763843370280,16.49608361,127.31,127.3,3.18]
[1763843375278,0.05608361,127.31,127.3,3.18]
[1763843380582,0.05608361,127.31,127.3,12.92509606]
[1763843385389,16.44,127.34,127.31,3.32]
[1763843385688,23.5123,127.34,127.31,3.32]
[1763843386389,23.57243121,127.34,127.31,3.37764864]
[1763843387980,16.50013121,127.34,127.31,3.37764864]
[1763843388380,16.50013121,127.34,127.32,3.32]
[1763843391783,23.57243121,127.34,127.31,0.05764864]
[1763843391984,16.50013121,127.34,127.31,0.05764864]
[1763843392290,19.07193197,127.34,127.31,0.05764864]
[1763843392492,7.0728,127.33,127.31,0.05764864]
[1763843399296,2.57180076,127.32,127.31,0.05764864]
[1763843402099,110.0665,127.28,127.25,9.74509606]
[1763843402304,126.4983,127.27,127.24,9.74326875]
[1763843402505,7.0767,127.26,127.24,9.74326875]
[1763843402700,126.4983,127.27,127.21,3.32]
[1763843402901,0.04972393,127.25,127.23,0.0539757]
[1763843403106,16.42,127.24,127.23,3.3739757]
[1763843403306,0.04972393,127.25,127.23,3.3739757]
[1763843403509,0.04972393,127.25,127.24,3.32]
[1763843408797,0.04972393,127.25,127.23,3.1039757]
[1763843409003,0.04972393,127.25,127.23,0.0539757]
[1763843410512,0.04972393,127.25,127.23,3.1039757]
[1763843411214,7.12722393,127.25,127.23,0.0539757]
[1763843411709,110.14652393,127.25,127.19,3.05]
[1763843412016,7.079,127.22,127.19,3.05]
[1763843412213,23.519,127.22,127.19,3.05]
[1763843412711,23.57015359,127.22,127.19,3.10135211]
[1763843412911,7.0795,127.21,127.19,3.10135211]
[1763843413111,7.0795,127.21,127.19,0.05135211]
[1763843413302,7.0795,127.21,127.19,3.10135211]
[1763843415012,16.49115359,127.22,127.19,3.10135211]
[1763843416516,0.05115359,127.22,127.19,3.10135211]
[1763843416817,16.49115359,127.22,127.19,3.10135211]
[1763843423218,16.49115359,127.22,127.19,0.05135211]
[1763843425125,7.0795,127.21,127.19,0.05135211]
[1763843426517,16.49115359,127.22,127.19,0.05135211]
[1763843426719,16.49115359,127.22,127.19,3.10135211]
[1763843427122,23.57015359,127.22,127.19,3.10135211]
[1763843427527,16.49115359,127.22,127.19,0.05135211]
[1763843428316,7.0795,127.21,127.19,0.05135211]
[1763843428520,9.65130076,127.21,127.19,0.05135211]
[1763843433340,110.1427,127.19,127.12,3.05]
[1763843433634,110.1427,127.19,127.11,9.69249017]
[1763843433635,2.57180076,127.16,127.11,9.69249017]
[1763843433839,16.44,127.15,127.11,12.74249017]
[1763843434238,0.05964562,127.14,127.12,0.05721446]
[1763843434636,0.05964562,127.14,127.12,3.10721446]
[1763843436343,0.05964562,127.14,127.13,3.25]
[1763843444342,0.05964562,127.14,127.13,12.94249017]
[1763843445247,0.05964562,127.14,127.13,3.25]
[1763843448553,7.0804,127.2,127.13,3.25]
[1763843448938,1.65015618,127.19,127.14,12.85249017]
[1763843449343,8.73115618,127.19,127.15,3.16]
[1763843449550,0.05394352,127.18,127.16,0.05753449]
[1763843453756,23.57514352,127.18,127.16,0.05753449]
[1763843457059,23.57514352,127.18,127.16,3.21753449]
[1763843457452,23.57514352,127.18,127.16,0.05753449]
[1763843458556,1.65015618,127.17,127.13,9.69249017]
[1763843458757,110.1689,127.16,127.11,12.85249017]
[1763843459056,1.65015618,127.16,127.12,3.16]
[1763843459760,0.05295847,127.15,127.13,0.05855887]
[1763843459951,16.44,127.14,127.13,0.05855887]
[1763843461458,7.085,127.11,127.08,9.69249017]
[1763843461964,16.44,127.1,127.08,12.85249017]
[1763843462162,16.44,127.1,127.08,3.16]
[1763843462464,16.49620217,127.1,127.08,3.2114653]
[1763843463563,23.58200217,127.1,127.08,0.0514653]
[1763843463866,25.23215835,127.1,127.08,0.0514653]
[1763843464759,18.14635835,127.1,127.08,3.2114653]
[1763843464966,16.49620217,127.1,127.08,3.2114653]
[1763843466858,16.49620217,127.1,127.03,3.3]
[1763843466859,1.65015618,127.09,127.03,3.3]
[1763843467064,1.65015618,127.09,127.04,3.3]
[1763843467862,0.05139567,127.08,127.05,0.05157401]
[1763843468165,0.05139567,127.08,127.05,3.35157401]
[1763843468866,0.05139567,127.08,127.05,0.05157401]
[1763843469462,8.73765618,127.07,127.05,0.05157401]
[1763843469768,16.44,127.06,127.05,0.05157401]
[1763843471265,23.5279,127.06,127.0,3.3]
[1763843471459,16.44,127.06,127.0,3.3]
[1763843471769,1.65015618,127.05,127.0,3.3]
[1763843472268,0.05621549,127.04,127.02,3.3]
[1763843474471,0.05621549,127.04,127.01,3.35002594]
[1763843475770,1.70637167,127.04,127.01,0.05002594]
[1763843476770,7.0899,127.03,127.01,0.05002594]
[1763843476970,16.46,127.02,127.01,0.05002594]
[1763843484971,16.46,127.02,126.96,3.3]
[1763843484972,126.7542,127.02,126.96,3.3]
[1763843485168,1.65015618,126.99,126.94,3.3]
[1763843485363,1.65015618,126.97,126.94,3.3]
[1763843485975,0.05952442,126.97,126.94,3.35250835]
[1763843486475,1.65015618,126.96,126.94,0.05250835]
[1763843486774,16.46,126.95,126.94,0.05250835]
[1763843487969,18.11015618,126.95,126.94,0.05250835]
[1763843488170,18.11015618,126.95,126.88,3.3]
[1763843488375,1.65015618,126.92,126.88,3.3]
[1763843488673,16.46,126.91,126.88,3.3]
[1763843489176,16.51447892,126.91,126.88,3.36024663]
[1763843493382,1.65015618,126.9,126.88,0.06024663]
[1763843493583,8.74705618,126.9,126.88,0.06024663]
[1763843494686,1.65015618,126.9,126.88,0.06024663]
[1763843496778,1.65015618,126.9,126.83,3.26]
[1763843496981,1.65015618,126.87,126.83,3.26]
[1763843497181,18.13015618,126.87,126.83,3.26]
[1763843497476,110.3469,126.96,126.83,3.26]
[1763843497681,0.05983681,126.91,126.88,3.31309392]
[1763843497881,0.05047805,126.91,126.89,3.26]
[1763843500083,7.0926,126.98,126.9,3.17]
[1763843500295,18.13015618,126.98,126.91,3.17]
[1763843500681,16.48,126.98,126.91,3.17]
[1763843500889,25.22285618,126.98,126.91,10.266]
[1763843501086,0.05422827,126.96,126.93,0.04975245]
[1763843501390,0.05422827,126.96,126.93,3.21975245]
[1763843510102,0.00422827,126.96,126.93,3.21975245]
[1763843510402,19.06646776,127.01,126.94,3.17]
[1763843510403,26.15746776,127.01,126.94,3.17]
[1763843510601,16.48,127.02,126.94,3.17]
[1763843510807,16.48,127.02,126.96,3.17]
[1763843511507,0.05224131,127.0,126.98,3.22857074]
[1763843511905,0.05224131,127.0,126.98,0.05857074]
[1763843512300,2.58646776,126.99,126.93,3.17]
[1763843512504,2.58646776,126.97,126.88,3.17]
[1763843512705,19.06646776,126.97,126.88,3.17]
[1763843513302,0.05923725,126.94,126.91,3.22127791]
[1763843516505,0.05923725,126.94,126.91,0.05127791]
[1763843517010,7.0952,126.93,126.91,0.05127791]
[1763843518505,16.48,126.92,126.91,0.05127791]
[1763843520616,23.5761,126.92,126.87,3.17]
[1763843521322,2.58646776,126.91,126.84,3.17]
[1763843521515,0.0556813,126.89,126.86,0.04975491]
[1763843522014,0.0556813,126.89,126.86,3.21975491]
[1763843522719,0.0556813,126.89,126.87,3.17]
[1763843523117,0.0556813,126.89,126.86,3.21975491]
[1763843525113,0.0556813,126.89,126.87,3.17]
[1763843525309,110.3228,126.99,126.88,5.75646776]
[1763843525506,19.10646776,126.98,126.89,3.17]
[1763843526322,0.05735738,126.95,126.92,3.19010529]
[1763843527926,0.05735738,126.95,126.92,12.87651901]
[1763843528231,0.05735738,126.95,126.94,3.13]
[1763843528416,0.05735738,126.95,126.93,3.13]
[1763843530227,0.05735738,126.95,126.94,3.13]
[1763843530626,16.52,127.0,126.95,3.13]
[1763843531527,16.52,127.0,126.93,9.68641372]
[1763843531528,0.05342459,126.99,126.97,3.13]
[1763843533527,0.05342459,126.99,126.96,0.05074178]
[1763843533729,0.05342459,126.99,126.96,3.18074178]
[1763843534516,0.05342459,126.99,126.96,7.14384178]
[1763843534720,0.05342459,126.99,126.97,3.13]
[1763843536415,0.05342459,126.99,126.97,10.2226]
[1763843536621,16.52,127.05,126.99,3.13]
[1763843537121,16.52,127.05,127.0,3.13]
[1763843537519,0.05924614,127.04,127.01,3.18496441]
[1763843538123,113.62646776,127.1,127.01,3.18496441]
[1763843538323,110.2475,127.07,127.01,3.13]
[1763843538731,7.0885,127.05,127.01,3.13]
[1763843539128,0.05301957,127.04,127.02,3.18559694]
[1763843540733,0.05301957,127.04,127.02,10.27539694]
[1763843540934,16.52,127.1,127.03,3.13]
[1763843541435,16.52,127.1,127.05,3.13]
[1763843541936,0.05693481,127.09,127.07,3.13]
[1763843542138,0.05693481,127.09,127.06,0.05451479]
[1763843543038,9.67326776,127.08,127.06,0.05451479]
[1763843544332,11.25326776,127.08,127.06,0.05451479]
[1763843545638,110.2473,127.07,127.01,3.13]
[1763843545834,114.40626776,127.08,127.01,3.13]
[1763843545835,16.52,127.06,127.01,3.13]
[1763843546740,0.05258108,127.05,127.02,3.18631561]
[1763843550140,0.05258108,127.05,127.02,0.05631561]
[1763843550936,0.05258108,127.05,127.02,3.18631561]
[1763843551137,7.14108108,127.05,127.02,3.18631561]
[1763843551337,0.05258108,127.05,127.02,3.18631561]
[1763843552843,7.0891,127.04,127.02,0.05631561]
[1763843553746,9.67556776,127.04,127.02,0.05631561]
[1763843554635,7.0891,127.04,127.02,3.18631561]
[1763843554833,0.05258108,127.05,127.02,3.18631561]
[1763843556251,7.14098108,127.05,127.02,3.18631561]
[1763843558348,0.05258108,127.05,127.02,3.18631561]
[1763843560444,0.05258108,127.05,127.02,0.05631561]
[1763843560845,2.58646776,127.04,127.02,0.05631561]
[1763843561046,9.67546776,127.04,127.02,0.05631561]
[1763843562150,110.2818,127.03,126.95,3.24]
[1763843562458,19.10646776,127.02,126.95,3.24]
[1763843563146,7.14398064,127.0,126.97,0.05180238]
[1763843563552,7.14398064,127.0,126.97,3.29180238]
[1763843563853,0.05278064,127.0,126.97,3.29180238]
[1763843565259,7.14408064,127.0,126.97,3.29180238]
[1763843566749,7.0918,126.99,126.97,0.05180238]
[1763843569759,0.05278064,127.0,126.97,3.29180238]
[1763843570762,7.14398064,127.0,126.97,3.29180238]
[1763843575764,7.0918,126.99,126.97,0.05180238]
[1763843576057,16.52,126.98,126.97,0.05180238]
[1763843576362,126.8475,126.98,126.92,9.72729582]
[1763843576558,126.8475,126.98,126.91,12.96729582]
[1763843576559,110.3337,126.97,126.91,12.96729582]
[1763843576754,110.3422,126.96,126.91,3.24]
[1763843576958,110.3545,126.95,126.9,3.24]
[1763843577153,16.52,126.94,126.9,3.24]
[1763843577352,0.05168529,126.93,126.91,0.05184502]
[1763843578063,7.0957,126.92,126.91,0.05184502]
[1763843580166,0.05168529,126.93,126.91,3.29184502]
[1763843581460,16.52,126.96,126.92,3.24]
[1763843581766,16.52,126.96,126.93,3.24]
[1763843581959,16.52,126.96,126.94,3.24]
[1763843582461,16.57606621,126.96,126.94,3.29787281]
[1763843583769,0.05606621,126.96,126.95,3.24]
[1763843584774,16.52,127.0,126.95,3.24]
[1763843585567,23.6113,127.0,126.95,3.24]
[1763843585971,0.0577149,126.99,126.95,12.96729582]
[1763843586368,0.0577149,126.99,126.96,3.18]
[1763843586574,1.71223874,126.99,126.94,9.78516863]
[1763843586770,1.71223874,126.99,126.94,3.23787281]
[1763843587775,0.0577149,126.99,126.94,3.23787281]
[1763843587980,0.0577149,126.99,126.96,3.18]
[1763843588270,0.0577149,126.99,126.97,3.18]
[1763843588466,0.0577149,126.99,126.97,3.24035753]
[1763843590771,7.0899,127.03,126.98,3.18]
[1763843590976,7.0899,127.03,126.99,3.18]
[1763843591474,25.26332384,127.05,126.99,3.18]
[1763843591675,18.17452384,127.05,126.99,3.18]
[1763843591862,0.05464083,127.03,127.01,0.05646955]
[1763843592373,0.05464083,127.03,127.01,3.23646955]
[1763843601187,0.05464083,127.03,127.01,0.05646955]
[1763843602185,7.14414083,127.03,127.01,0.05646955]
[1763843604088,7.0902,127.02,126.97,3.18]
[1763843605288,7.0902,127.02,126.98,3.23236949]
[1763843605484,0.05370013,127.01,126.98,3.23236949]
[1763843610591,0.05370013,127.01,126.98,0.05236949]
[1763843610793,4.01849355,126.99,126.94,3.18]
[1763843610990,4.01849355,126.98,126.94,3.18]
[1763843611292,114.34589355,126.98,126.93,3.18]
[1763843611896,0.05353867,126.97,126.94,3.23517093]
[1763843612096,7.0936,126.96,126.94,3.23517093]
[1763843612995,23.6136,126.96,126.94,3.23517093]
[1763843614398,16.52,126.96,126.94,3.23517093]
[1763843617802,1.65548622,126.95,126.94,3.23517093]
[1763843619002,16.52,126.96,126.94,3.23517093]
[1763843621208,16.52,126.96,126.94,0.05517093]
[1763843622109,23.6136,126.96,126.94,0.05517093]
[1763843623699,23.6136,126.96,126.94,3.32517093]
[1763843627110,16.52,126.96,126.94,3.32517093]
[1763843637119,16.52,126.96,126.94,0.05517093]
[1763843638127,23.6135,126.96,126.94,0.05517093]
[1763843638614,16.52,126.96,126.94,0.05517093]
[1763843640721,23.6134,126.96,126.94,0.05517093]
[1763843642116,112.93984318,126.95,126.89,9.72729582]
[1763843642320,112.93984318,126.95,126.88,12.99729582]
[1763843642518,112.93984318,126.95,126.88,3.27]
[1763843643018,0.05485198,126.93,126.9,0.05871141]
[1763843643218,16.5,126.92,126.9,0.05871141]
[1763843643417,16.5,126.92,126.83,3.27]
[1763843643418,110.3944,126.9,126.83,3.27]
[1763843643719,2.58574318,126.89,126.83,3.27]
[1763843643920,16.5,126.88,126.83,3.27]
[1763843644322,0.05193478,126.87,126.84,0.05162202]
[1763843645223,113.05847796,126.87,126.84,0.05162202]
[1763843645530,2.63767796,126.87,126.84,0.05162202]
[1763843645721,0.05193478,126.87,126.84,0.05162202]
[1763843646320,7.15063478,126.87,126.84,0.05162202]
[1763843646525,110.47323478,126.87,126.84,0.05162202]
[1763843648128,9.68494318,126.86,126.84,0.05162202]
[1763843648329,9.68494318,126.86,126.8,3.27]
[1763843648330,7.0992,126.86,126.8,3.27]
[1763843648623,7.0998,126.85,126.8,3.27]
[1763843648817,16.52,126.84,126.8,3.27]
[1763843649415,0.05560069,126.83,126.82,3.31]
[1763843650930,0.05560069,126.83,126.81,3.36295856]
[1763843653725,7.0979,126.88,126.81,3.36295856]
[1763843653926,110.3845,126.92,126.84,3.31]
[1763843654126,16.52,126.91,126.84,3.31]
[1763843654929,0.05671649,126.89,126.86,3.36719429]
[1763843675655,0.05671649,126.89,126.86,0.05719429]
[1763843675849,113.04885967,126.89,126.86,0.05719429]
[1763843676036,110.4209,126.87,126.81,3.07]
[1763843676242,7.0995,126.85,126.81,3.07]
[1763843677138,0.05950903,126.84,126.83,3.07]
[1763843681739,16.5,126.87,126.83,3.07]
[1763843682054,112.97424318,126.91,126.85,3.01]
[1763843682055,16.52,126.91,126.85,3.01]
[1763843682239,16.52,126.91,126.86,3.01]
[1763843682755,0.05162401,126.9,126.87,0.05257214]
[1763843682948,0.05162401,126.9,126.88,3.01]
[1763843683158,7.14882401,126.9,126.88,3.01]
[1763843683451,0.05162401,126.9,126.88,3.01]
[1763843685451,0.05162401,126.9,126.87,0.05257214]
[1763843685657,0.05162401,126.9,126.87,3.06257214]
[1763843687546,0.05162401,126.9,126.87,12.78986796]
[1763843687746,0.05162401,126.9,126.88,3.01]
[1763843688160,0.05162401,126.9,126.88,12.73729582]
[1763843688450,7.0955,126.93,126.89,3.01]
[1763843689163,26.18014318,126.95,126.9,3.01]
[1763843689454,26.18014318,126.95,126.89,7.0972]
[1763843689455,0.05616045,126.94,126.92,3.01]
[1763843690255,7.15066045,126.94,126.92,3.01]
[1763843692360,7.0952,126.93,126.91,0.06020995]
[1763843692751,8.75154957,126.93,126.91,0.06020995]
[1763843693660,8.75154957,126.93,126.91,3.07020995]
[1763843698965,7.0952,126.93,126.91,3.07020995]
[1763843699267,1.71251002,126.94,126.91,3.07020995]
[1763843699469,0.05616045,126.94,126.91,3.07020995]
[1763843699659,0.05616045,126.94,126.92,3.01]
[1763843699863,0.05616045,126.94,126.92,12.73729582]
[1763843700167,0.05616045,126.94,126.93,3.01]
[1763843700872,1.71251002,126.94,126.91,12.79750577]
[1763843701279,8.80741002,126.94,126.92,3.01]
[1763843701576,7.15106045,126.94,126.92,3.01]
[1763843701767,0.05616045,126.94,126.92,3.01]
[1763843702573,7.15066045,126.94,126.92,3.01]
[1763843703466,0.05616045,126.94,126.92,3.01]
[1763843704268,7.15076045,126.94,126.92,3.01]
[1763843704665,7.15076045,126.94,126.91,0.06020995]
[1763843704666,1.65634957,126.93,126.91,0.06020995]
[1763843704871,1.65634957,126.91,126.88,3.01]
[1763843705474,7.0968,126.9,126.88,3.01]
[1763843705775,1.65634957,126.89,126.88,0.05551697]
[1763843706774,1.65634957,126.89,126.88,3.30551697]
[1763843707078,8.75394957,126.89,126.88,3.30551697]
[1763843707475,8.75394957,126.89,126.88,0.05551697]
[1763843707772,25.25394957,126.89,126.88,0.05551697]
[1763843708475,18.15634957,126.89,126.84,12.97729582]
[1763843708676,8.75524957,126.87,126.84,3.25]
[1763843708867,1.65634957,126.87,126.84,3.25]
[1763843709576,1.7067219,126.87,126.84,3.3025455]
[1763843712377,8.8052219,126.87,126.84,3.3025455]
[1763843714179,1.7067219,126.87,126.84,3.3025455]
[1763843717378,8.8052219,126.87,126.84,3.3025455]
[1763843717578,1.7067219,126.87,126.84,3.3025455]
[1763843719078,7.0992,126.86,126.84,3.3025455]
[1763843720778,1.65634957,126.85,126.84,0.0525455]
[1763843725074,7.0992,126.86,126.84,3.3025455]
[1763843725282,7.0992,126.86,126.84,0.0525455]
[1763843728582,1.65634957,126.85,126.84,0.0525455]
[1763843730684,1.65634957,126.85,126.81,3.25]
[1763843731479,1.65634957,126.83,126.79,9.72729582]
[1763843731684,1.65634957,126.83,126.8,3.25]
[1763843731882,0.04960608,126.82,126.8,3.30268116]
[1763843734781,0.04960608,126.82,126.8,10.40488116]
[1763843734985,0.04960608,126.82,126.81,3.25]
[1763843737086,8.75584957,126.86,126.82,3.11]
[1763843737986,8.75584957,126.86,126.83,3.11]
[1763843738187,8.81037646,126.86,126.83,3.16799532]
[1763843738578,8.81037646,126.86,126.83,10.26859532]
[1763843738579,0.05452689,126.86,126.83,10.26859532]
[1763843738775,0.05452689,126.86,126.84,3.01]
[1763843746992,0.05452689,126.86,126.84,10.11]
[1763843747295,0.05452689,126.86,126.85,3.01]
[1763843749092,0.05452689,126.86,126.85,12.73729582]
[1763843750489,0.05452689,126.86,126.85,3.01]
[1763843751395,0.05452689,126.86,126.85,12.73729582]
[1763843761590,9.88647267,126.96,126.87,3.01]
[1763843761900,16.5,126.95,126.89,3.01]
[1763843762089,16.5,126.95,126.9,3.01]
[1763843762906,0.05788802,126.94,126.92,3.01]
[1763843769116,7.15248802,126.94,126.92,3.01]
[1763843769315,0.05788802,126.94,126.91,3.31083477]
[1763843770015,7.15248802,126.94,126.91,3.31083477]
[1763843771118,7.0951,126.93,126.91,3.31083477]
[1763843775325,0.05788802,126.94,126.91,3.31083477]
[1763843777125,7.15248802,126.94,126.91,3.31083477]
[1763843789632,0.05788802,126.94,126.91,3.31083477]
[1763843789830,0.05788802,126.94,126.91,0.05083477]
[1763843789831,7.0952,126.93,126.91,0.05083477]
[1763843790540,7.0952,126.93,126.88,13.08081458]
[1763843790541,7.0963,126.91,126.88,13.08081458]
[1763843790838,7.0963,126.91,126.88,3.26]
[1763843791034,129.45518772,126.91,126.86,9.82081458]
[1763843791339,0.05262306,126.9,126.87,0.05643631]
[1763843792137,7.0977,126.89,126.87,0.05643631]
[1763843793341,9.68708772,126.89,126.87,0.05643631]
[1763843793543,16.5,126.88,126.87,0.05643631]
[1763843796139,7.0991,126.86,126.84,3.26]
[1763843797044,7.15760799,126.86,126.84,3.30979334]
[1763843799541,7.15760799,126.86,126.84,0.04979334]
[1763843800233,7.1002,126.84,126.81,3.08]
[1763843801145,7.1008,126.83,126.81,3.08]
[1763843801442,16.5,126.82,126.77,3.08]
[1763843802337,7.102,126.81,126.77,3.08]
[1763843802535,0.05892299,126.8,126.77,3.08]
[1763843803041,0.05892299,126.8,126.76,3.08]
[1763843803254,16.5,126.79,126.74,12.90081458]
[1763843803541,16.5,126.79,126.74,3.08]
[1763843804248,7.1037,126.78,126.74,3.08]
[1763843804449,0.05558756,126.77,126.74,3.08]
[1763843805748,7.15978756,126.77,126.74,3.08]
[1763843806757,0.05558756,126.77,126.74,3.08]
[1763843808152,0.05558756,126.77,126.71,3.08]
[1763843808950,110.56638756,126.77,126.71,3.08]